fUST/lending_fUST_20240617
["ID","MTS","AMOUNT","RATE_DAILY","PERIOD"]
[329731457,1718627268755,2096.8985255,0.00016476,2]
[329731458,1718627288797,2096.8985255,0.00016476,2]
[329731459,1718627306745,1222.69641567,0.00016476,2]
[329731460,1718627335073,815.24107336,0.00016487,2]
[329731462,1718627363856,40000.0,0.00023192,60]
[329731473,1718627433694,-402.2507925,0.00016567,2]
[329731474,1718627433754,-2645.10006487,0.00016568,2]
[329731475,1718627433804,-164.25411681,0.00016572,2]
[329731476,1718627433851,-599.4949408,0.00016572,2]
[329731477,1718627433884,-300.0,0.00016573,2]
[329731478,1718627433923,-300.0,0.00016573,2]
[329731479,1718627433964,-500.0,0.00016573,2]
[329731480,1718627433994,-555.5,0.00016573,2]
[329731481,1718627434032,-2389.38358071,0.00016574,2]
[329731488,1718627434378,5000.0,0.00020827,60]
[329731595,1718627441929,-6574.0,0.00016574,2]
[329731596,1718627441947,-1405.29436376,0.00016574,2]
[329731597,1718627442272,-49265.83282701,0.00016574,2]
[329731598,1718627442306,-469.82607777,0.00016612,2]
[329731600,1718627442369,-500.0,0.00016712,2]
[329731602,1718627442383,-555.5,0.00016847,2]
[329731603,1718627442409,-177.40422416,0.00016985,2]
[329731604,1718627442424,-500.0,0.00016985,2]
[329731605,1718627442441,-507.52531438,0.00016985,2]
[329731606,1718627442461,-512.81136051,0.00016985,2]
[329731607,1718627442512,-500.0,0.00016985,2]
[329731608,1718627442531,-765.63,0.00016985,2]
[329731609,1718627442550,-500.0,0.00016986,2]
[329731610,1718627442562,-555.5,0.00017121,2]
[329731611,1718627442626,-815.24107332,0.00017134,2]
[329731612,1718627442652,-765.63,0.00017259,2]
[329731613,1718627442664,-500.0,0.0001726,2]
[329731614,1718627442674,-555.5,0.00017395,2]
[329731615,1718627442723,-765.63,0.00017533,2]
[329731616,1718627442759,-500.0,0.00017534,2]
[329731617,1718627442770,-555.5,0.00017669,2]
[329731618,1718627442789,-815.24107332,0.00017782,2]
[329731619,1718627442810,-765.63,0.00017807,2]
[329731620,1718627442840,-500.0,0.00017808,2]
[329731621,1718627442864,-555.5,0.00017943,2]
[329731622,1718627442891,-500.0,0.00017999,2]
[329731623,1718627442903,-500.0,0.00017999,2]
[329731624,1718627442913,-476.97437791,0.00018,2]
[329731625,1718627442925,-825.23441337,0.00018,2]
[329731626,1718627442935,-452.14,0.00018078,2]
[329731627,1718627442946,-551.94,0.00018078,2]
[329731628,1718627442960,-500.0,0.00018078,2]
[329731629,1718627442978,-500.0,0.00018078,2]
[329731630,1718627442990,-254.77,0.00018078,2]
[329731631,1718627443003,-500.0,0.00018078,2]
[329731632,1718627443021,-553.09,0.00018078,2]
[329731633,1718627443032,-500.0,0.00018078,2]
[329731634,1718627443048,-1187.72875107,0.00018079,2]
[329731635,1718627443060,-1011.2627225,0.00018079,2]
[329731636,1718627443072,-511.26445969,0.0001808,2]
[329731637,1718627443089,-9509.95682054,0.0001808,2]
[329731638,1718627443100,-559.59,0.0001808,2]
[329731639,1718627443110,-20000.0,0.00018081,2]
[329731640,1718627443120,-765.63,0.00018081,2]
[329731641,1718627443148,-500.0,0.00018082,2]
[329731642,1718627443159,-420.0,0.00018109,2]
[329731643,1718627443192,-555.5,0.00018217,2]
[329731644,1718627443246,-420.0,0.0001823,2]
[329731645,1718627443260,-500.0,0.00018273,2]
[329731646,1718627443270,-500.0,0.00018273,2]
[329731647,1718627443281,-551.94,0.00018352,2]
[329731648,1718627443297,-539.47,0.00018352,2]
[329731649,1718627443310,-500.0,0.00018352,2]
[329731650,1718627443320,-500.0,0.00018352,2]
[329731651,1718627443332,-500.0,0.00018352,2]
[329731652,1718627443343,-765.63,0.00018355,2]
[329731654,1718627443353,-500.0,0.00018356,2]
[329731657,1718627443380,-815.24107332,0.00018429,2]
[329731659,1718627443391,-555.5,0.00018491,2]
[329731661,1718627443429,-180.61,0.00018547,2]
[329731662,1718627443452,-500.0,0.00018547,2]
[329731663,1718627443463,-551.94,0.00018626,2]
[329731664,1718627443494,-590.16,0.00018626,2]
[329731665,1718627443514,-500.0,0.00018626,2]
[329731666,1718627443533,-500.0,0.00018626,2]
[329731667,1718627443545,-765.63,0.00018629,2]
[329731668,1718627443557,-500.0,0.0001863,2]
[329731669,1718627443569,-250.0,0.0001863,2]
[329731670,1718627443591,-555.5,0.00018765,2]
[329731671,1718627443604,-500.0,0.00018821,2]
[329731672,1718627443628,-674.87074901,0.00018893,2]
[329731673,1718627443639,-17365.21961696,0.000189,2]
[329731674,1718627443681,-551.94,0.000189,2]
[329731675,1718627443694,-500.0,0.000189,2]
[329731677,1718627443752,-500.0,0.000189,2]
[329731679,1718627443777,-765.63,0.00018903,2]
[329731680,1718627443802,-500.0,0.00018904,2]
[329731682,1718627443813,-151.0,0.00018962,2]
[329731684,1718627443842,-275.785241,0.00018986,2]
[329731685,1718627443862,-782.92587931,0.00018995,2]
[329731687,1718627443883,-1000.0,0.00019,10]
[329731688,1718627443894,-163.21623134,0.00019,2]
[329731689,1718627443923,-555.5,0.00019039,2]
[329731690,1718627443935,-815.24107332,0.00019076,2]
[329731691,1718627443948,-240.2821,0.00019082,2]
[329731692,1718627443960,-500.0,0.00019095,2]
[329731693,1718627443972,-157.66044084,0.00019172,2]
[329731694,1718627443989,-425.06183687,0.00019172,2]
[329731695,1718627444001,-159.05811469,0.00019172,2]
[329731696,1718627444016,-1043.91272527,0.00019173,2]
[329731697,1718627444038,-274.55377116,0.00019173,2]
[329731698,1718627444060,-1282.5992588,0.00019174,2]
[329731699,1718627444080,-187.17938631,0.00019174,2]
[329731700,1718627444091,-387.78402045,0.00019174,2]
[329731701,1718627444104,-285.94374154,0.00019174,2]
[329731702,1718627444120,-7924.74626995,0.00019174,2]
[329731703,1718627444161,-309.98604838,0.00019174,2]
[329731704,1718627444173,-412.41473534,0.00019174,2]
[329731705,1718627444186,-310.00155002,0.00019174,2]
[329731706,1718627444200,-155.96057036,0.00019174,2]
[329731707,1718627444215,-841.72525747,0.00019174,2]
[329731708,1718627444247,-551.94,0.00019174,2]
[329731709,1718627444259,-500.0,0.00019174,2]
[329731710,1718627444281,-500.0,0.00019174,2]
[329731711,1718627444297,-1046.98253806,0.00019175,15]
[329731712,1718627444333,-317.64353351,0.00019175,2]
[329731713,1718627444365,-257.05010068,0.00019175,2]
[329731714,1718627444394,-2083.52513032,0.00019175,2]
[329731715,1718627444413,-290.05623938,0.00019175,2]
[329731716,1718627444435,-42133.2060422,0.00019175,2]
[329731717,1718627444466,-262.21255438,0.00019175,2]
[329731718,1718627444493,-309.90857507,0.00019175,2]
[329731719,1718627444521,-1343.77512204,0.00019175,2]
[329731720,1718627444549,-155.02170304,0.00019175,2]
[329731721,1718627444563,-156.9902577,0.00019176,2]
[329731722,1718627444578,-155.22070327,0.00019176,2]
[329731723,1718627444591,-10609.83281946,0.00019176,2]
[329731724,1718627444613,-1154.57534567,0.00019176,2]
[329731725,1718627444628,-271.64226744,0.00019176,2]
[329731726,1718627444662,-765.63,0.00019177,2]
[329731727,1718627444677,-4809.79402575,0.00019178,2]
[329731728,1718627444708,-5039.31336341,0.00019178,2]
[329731729,1718627444722,-5039.31336341,0.00019178,2]
[329731730,1718627444743,-5039.31336341,0.00019178,2]
[329731731,1718627444754,-5039.31336346,0.00019178,2]
[329731732,1718627444767,-2720.97171269,0.00019178,2]
[329731733,1718627444791,-2720.97171269,0.00019178,2]
[329731734,1718627444817,-2720.97171269,0.00019178,2]
[329731735,1718627444872,-2720.97171269,0.00019178,2]
[329731736,1718627444892,-2720.97171269,0.00019178,2]
[329731737,1718627444903,-859.84282409,0.00019178,2]
[329731750,1718627447849,-153.0,0.00016587,2]
[329731751,1718627447904,-1861.1288886,0.00019178,2]
[329731752,1718627447921,-2720.97171269,0.00019178,2]
[329731753,1718627447936,-2720.97171269,0.00019178,2]
[329731754,1718627447964,-2720.97171269,0.00019178,2]
[329731755,1718627447976,-2720.97171269,0.00019178,2]
[329731756,1718627447992,-2720.97171269,0.00019178,2]
[329731757,1718627448013,-2720.97171269,0.00019178,2]
[329731758,1718627448040,-2798.71376162,0.00019178,2]
[329731760,1718627448051,-253.18625735,0.00019178,2]
[329731761,1718627448063,-500.0,0.00019178,2]
[329731763,1718627448075,-500.0,0.00019178,2]
[329731764,1718627448087,-500.0,0.00019178,2]
[329731765,1718627448104,-358.83109058,0.00019178,2]
[329731766,1718627448120,-1018.54448529,0.00019178,2]
[329731767,1718627448160,-500.0,0.00019178,2]
[329731768,1718627448205,-379.65214524,0.00019178,2]
[329731769,1718627448272,-500.0,0.00019178,2]
[329731770,1718627448306,-157.39793108,0.00019178,2]
[329731771,1718627448340,-500.0,0.00019178,2]
[329731772,1718627448354,-500.0,0.00019178,2]
[329731773,1718627448369,-500.0,0.00019178,2]
[329731775,1718627448424,-506.54233128,0.00019178,2]
[329731776,1718627448455,-499.99999999,0.00019178,2]
[329731777,1718627448470,-500.0,0.00019178,2]
[329731778,1718627448532,-555.67040486,0.00019178,2]
[329731779,1718627448592,-500.0,0.00019178,2]
[329731780,1718627448620,-593.65,0.00019178,2]
[329731781,1718627448657,-500.0,0.00019178,2]
[329731782,1718627448693,-151.0,0.00019178,2]
[329731783,1718627448735,-151.0,0.00019178,2]
[329731784,1718627448817,-151.0,0.00019178,2]
[329731785,1718627448832,-380.2386,0.00019178,2]
[329731786,1718627448887,-151.0,0.00019178,2]
[329731787,1718627448948,-469.82607773,0.00019313,2]
[329731788,1718627448981,-555.5,0.00019313,2]
[329731789,1718627449009,-500.0,0.00019369,2]
[329731790,1718627449024,-551.94,0.00019448,2]
[329731791,1718627449044,-500.0,0.00019448,2]
[329731792,1718627449056,-500.0,0.00019448,2]
[329731793,1718627449081,-209.26355,0.0001945,2]
[329731794,1718627449104,-245.028482,0.0001945,2]
[329731795,1718627449171,-765.63,0.00019451,2]
[329731798,1718627449210,-151.0,0.00019451,2]
[329731799,1718627449274,-500.0,0.00019452,2]
[329731800,1718627449292,-160.0,0.00019464,3]
[329731801,1718627449321,-205.5312875,0.00019495,2]
[329731802,1718627449333,-214.0,0.000195,10]
[329731803,1718627449346,-297.12620087,0.000195,5]
[329731804,1718627449376,-1000.0,0.000195,2]
[329731805,1718627449387,-160.0,0.00019556,4]
[329731806,1718627449407,-555.5,0.00019587,2]
[329731807,1718627449424,-500.0,0.00019643,2]
[329731808,1718627449456,-160.0,0.00019647,5]
[329731809,1718627449493,-551.94,0.00019722,2]
[329731810,1718627449518,-500.0,0.00019722,2]
[329731811,1718627449530,-500.0,0.00019722,2]
[329731812,1718627449569,-765.63,0.00019725,2]
[329731813,1718627449583,-500.0,0.00019726,2]
[329731814,1718627449601,-160.0,0.00019739,6]
[329731815,1718627449630,-587.0,0.00019788,2]
[329731816,1718627449650,-2240.51579938,0.0001979,2]
[329731817,1718627449679,-1395.51306882,0.0001979,2]
[329731818,1718627449702,-17023.84306214,0.0001979,2]
[329731820,1718627449768,-1231.88341596,0.0001979,2]
[329731822,1718627449893,-402.2507925,0.00019177,2]
[329731823,1718627449905,-1199.20055969,0.00019177,2]
[329731824,1718627449918,-439.5259797,0.00019178,4]
[329731825,1718627449929,-19279.00930929,0.0001979,2]
[329731826,1718627450469,-5262.6261133,0.0001979,2]
[329731828,1718627451447,-2573.35361673,0.0001979,2]
[329731829,1718627451463,-467.70719969,0.0001979,2]
[329731830,1718627451484,-1102.66100667,0.0001979,2]
[329731833,1718627453201,-29.35799271,0.0001979,2]
[329731834,1718627486783,3099.59,0.000236,120]
[329731835,1718627593299,3000.0,0.000225,30]
[329731836,1718627620813,299.79349277,0.00023364,120]
[329731837,1718627690472,1291.56,0.000236,120]
[329731839,1718627839542,-176.19617298,9.703e-05,2]
[329731840,1718627839584,-155.00465014,0.00016467,2]
[329731841,1718627839653,-411.09781808,0.00016468,2]
[329731842,1718627839716,-300.0,0.00016564,2]
[329731843,1718627839825,-41091.2013588,0.00016564,2]
[329731844,1718627841794,10000.0,0.000236,120]
[329731845,1718627860250,10000.0,0.00021192,90]
[329731846,1718627877163,10000.0,0.00020827,60]
[329731847,1718627899533,10000.0,0.000225,30]
[329731848,1718627900236,-42133.2,0.00016561,2]
[329731850,1718627929525,10000.0,0.000225,30]
[329731851,1718627945447,10000.0,0.000236,120]
[329731852,1718627960898,10000.0,0.00021192,90]
[329731853,1718627976533,10000.0,0.000236,120]
[329731855,1718628192766,3000.0,0.000225,30]
[329731857,1718628493709,-1985.59553979,9.785e-05,2]
[329731858,1718628493759,-300.0,9.786e-05,2]
[329731859,1718628493828,-402.2507925,9.786e-05,2]
[329731860,1718628493888,-300.0,9.786e-05,2]
[329731861,1718628493919,-10552.58805036,9.786e-05,2]
[329731862,1718628493977,-36459.56561735,9.787e-05,2]
[329731864,1718628563716,-454.01847078,9.688e-05,2]
[329731866,1718628563775,-454.01847078,9.688e-05,2]
[329731867,1718628582257,10000.0,0.000236,120]
[329731874,1718628608695,-402.2507925,9.687e-05,2]
[329731875,1718628608759,-300.0,9.687e-05,2]
[329731876,1718628608816,-300.0,9.687e-05,2]
[329731877,1718628608856,-18305.1316594,9.688e-05,2]
[329731878,1718628608941,-155.0,9.688e-05,2]
[329731879,1718628608984,-42141.17260049,9.785e-05,2]
[329731880,1718628609030,-38396.44494761,9.786e-05,2]
[329731881,1718628618837,10000.0,0.000225,30]
[329731900,1718628635205,-237.37858693,9.688e-05,2]
[329731902,1718628635231,-734.5197281,9.785e-05,2]
[329731904,1718628635273,-805.22951312,9.785e-05,2]
[329731923,1718628642536,-5167.93535094,9.785e-05,2]
[329731924,1718628642565,-402.2507925,9.785e-05,2]
[329731925,1718628642600,-2982.96718656,9.786e-05,2]
[329731927,1718628642965,-300.448704,9.688e-05,2]
[329731928,1718628642984,-227.71783139,9.786e-05,2]
[329731987,1718628647542,-655.61354902,9.786e-05,2]
[329732041,1718628650294,-686.04216794,9.785e-05,2]
[329732044,1718628650312,-17307.68043722,9.786e-05,2]
[329732046,1718628650325,-18189.90047399,9.787e-05,2]
[329732048,1718628650345,-385.50862397,9.787e-05,2]
[329732050,1718628650371,-420.0,0.00010656,2]
[329732052,1718628650388,-214.0,0.00011721,2]
[329732053,1718628650419,-359.71059082,0.000129,2]
[329732055,1718628650442,-359.71059075,0.00013376,2]
[329732058,1718628650459,-250.0,0.00015043,2]
[329732060,1718628650475,-188.0301948,0.00015624,2]
[329732062,1718628650500,-1591.4868362,0.00015678,2]
[329732064,1718628650526,-500.0,0.00016573,2]
[329732066,1718628650557,-4.6520926,0.00016847,2]
[329732225,1718628792212,3230.99249,0.000225,30]
[329732226,1718628826484,-527.35390361,9.67e-05,2]
[329732227,1718628826530,-317.77738365,9.671e-05,2]
[329732228,1718628826652,-155.0,9.671e-05,2]
[329732229,1718628826736,-10552.58805036,9.671e-05,2]
[329732230,1718628826778,-509.34451293,9.671e-05,2]
[329732231,1718628826832,-524.87187844,9.671e-05,2]
[329732232,1718628826868,-242.62254666,9.672e-05,2]
[329732233,1718628826946,-1985.59553979,9.672e-05,2]
[329732234,1718628826995,-928.30231028,9.673e-05,2]
[329732235,1718628827041,-1443.37252304,9.673e-05,2]
[329732236,1718628827093,-687.03019163,9.673e-05,2]
[329732237,1718628827133,-155.0,9.673e-05,2]
[329732238,1718628827175,-262.33643581,9.673e-05,2]
[329732239,1718628827202,-2645.10006487,9.673e-05,2]
[329732240,1718628827235,-402.2507925,9.674e-05,2]
[329732241,1718628827280,-1502.80112526,9.674e-05,2]
[329732242,1718628827323,-157.05290369,9.674e-05,2]
[329732243,1718628827364,-300.0,9.675e-05,2]
[329732244,1718628827418,-157.87577542,9.675e-05,2]
[329732245,1718628827670,-155.0,9.675e-05,2]
[329732246,1718628827792,-46669.02695053,9.675e-05,2]
[329732247,1718628827825,-155.0,9.676e-05,2]
[329732248,1718628827853,-11107.98678367,9.676e-05,2]
[329732249,1718628827891,-410.88160417,9.677e-05,2]
[329732250,1718628827921,-225.31765911,9.677e-05,2]
[329732251,1718628827972,-2038.35365167,9.677e-05,2]
[329732252,1718628828029,-155.00930056,9.677e-05,2]
[329732253,1718628828080,-660.45293371,9.68e-05,2]
[329732254,1718628828147,-500.0,9.68e-05,2]
[329732255,1718628828176,-155.0,9.681e-05,2]
[329732256,1718628828208,-150.98553735,9.687e-05,2]
[329732257,1718628828782,523.87515124,9.669e-05,2]
[329732258,1718628828952,1283.11032023,9.669e-05,2]
[329732259,1718628837046,155.0,9.9e-05,2]
[329732260,1718628873423,155.0,9.9e-05,2]
[329732261,1718628874473,3617.69416732,9.9e-05,2]
[329732262,1718628880101,155.0,9.9e-05,2]
[329732263,1718628880273,292.23401404,9.9e-05,2]
[329732264,1718628887434,156.03059706,9.9e-05,2]
[329732265,1718628890245,3614.98113062,9.9e-05,2]
[329732266,1718628896088,157.42307565,9.9e-05,2]
[329732267,1718628896297,292.11696683,9.9e-05,2]
[329732268,1718628903407,164.64057133,9.899e-05,2]
[329732271,1718629135241,262.33643581,9.999e-05,2]
[329732272,1718629137390,155.0,9.999e-05,2]
[329732273,1718629138157,157.05290369,9.999e-05,2]
[329732274,1718629141672,317.77738365,9.999e-05,2]
[329732275,1718629143075,1502.80112526,9.999e-05,2]
[329732276,1718629155136,509.34451293,9.999e-05,2]
[329732277,1718629155989,689.29128563,9.999e-05,2]
[329732278,1718629398007,150.0,0.000225,30]
[329732289,1718629716457,-437.06379886,9.202e-05,2]
[329732290,1718629716527,-437.06379886,9.202e-05,2]
[329732291,1718629716591,-191.0444337,9.202e-05,2]
[329732292,1718629741241,-458.36723949,9.199e-05,2]
[329732295,1718629741400,-65.50791175,9.199e-05,2]
[329732297,1718629741450,-262.33643581,9.2e-05,2]
[329732299,1718629741500,-130.52289193,9.2e-05,2]
[329732306,1718629766235,-402.2507925,9.199e-05,2]
[329732307,1718629766281,-54.03416705,9.2e-05,2]
[329732377,1718629835685,-262.33643581,9.195e-05,2]
[329732379,1718629835697,-523.87515124,9.196e-05,2]
[329732381,1718629835729,-2645.10006487,9.197e-05,2]
[329732383,1718629835745,-509.34451293,9.198e-05,2]
[329732385,1718629835784,-450.61653529,9.199e-05,2]
[329732519,1718629840733,-446.07304454,9.199e-05,2]
[329732521,1718629840749,-386.4207404,9.199e-05,2]
[329732522,1718629840773,-273.37336231,9.203e-05,2]
[329732523,1718629840785,-155.01240099,9.292e-05,2]
[329732525,1718629840797,-3212.05223376,9.293e-05,2]
[329732527,1718629840825,-18835.77671201,9.293e-05,2]
[329732529,1718629840852,-7992.81647,9.293e-05,2]
[329732556,1718629841842,-12100.52718472,9.293e-05,2]
[329732558,1718629841864,-211.50642507,9.294e-05,2]
[329732561,1718629841893,-33429.5416605,9.294e-05,2]
[329732563,1718629841913,-300.0,9.294e-05,2]
[329732566,1718629841960,-300.0,9.294e-05,2]
[329732567,1718629841988,-5860.252719,9.296e-05,2]
[329732569,1718629842009,-956.2203204,9.613e-05,2]
[329732570,1718629842025,-250.0,9.762e-05,2]
[329732571,1718629842043,-420.0,0.00010223,2]
[329732572,1718629842054,-420.0,0.00010223,2]
[329732573,1718629842074,-721.36613912,0.00010949,2]
[329732574,1718629842112,-524.87,0.00010959,2]
[329732575,1718629842125,-437.39,0.00010959,2]
[329732576,1718629842139,-364.49,0.00010959,2]
[329732577,1718629842152,-303.74,0.00010959,2]
[329732578,1718629842169,-253.12,0.00010959,2]
[329732579,1718629842204,-210.93,0.00010959,2]
[329732580,1718629842260,-175.78,0.00010959,2]
[329732581,1718629842284,-878.92,0.00010959,2]
[329732582,1718629842305,-156.92350972,0.00011048,2]
[329732583,1718629842323,-317.51355361,0.00011048,2]
[329732584,1718629842387,-455.60873248,0.00011048,2]
[329732585,1718629842399,-155.27031084,0.00011049,2]
[329732586,1718629842425,-15789.7315179,0.00011051,2]
[329732587,1718629842456,-587.0,0.00011246,2]
[329732588,1718629842529,-587.0,0.00011246,2]
[329732589,1718629842570,-721.36613912,0.00012296,2]
[329732590,1718629842583,-823.0,0.0001237,2]
[329732591,1718629842597,-823.0,0.0001237,2]
[329732592,1718629842625,-593.45670336,0.000129,2]
[329732593,1718629842677,-593.45670335,0.000129,2]
[329732594,1718629842709,-377.0,0.00013607,2]
[329732595,1718629842741,-721.36613912,0.00013644,2]
[329732596,1718629842772,-220.6921017,0.00013699,2]
[329732597,1718629842796,-3000.0,0.00013699,2]
[329732598,1718629842831,-680.87092,0.00013699,2]
[329732599,1718629842848,-5532.76489395,0.00014897,2]
[329732600,1718629842874,-721.36613912,0.00014991,2]
[329732601,1718629842887,-164.19015588,0.00014996,2]
[329732602,1718629842915,-242.46898024,0.00014998,2]
[329732603,1718629842960,-686.5517284,0.00014998,2]
[329732604,1718629842975,-524.54289233,0.00014998,2]
[329732605,1718629842987,-216.63131431,0.00014998,2]
[329732606,1718629843012,-2098.04379233,0.00014999,2]
[329732607,1718629843060,-155.02170304,0.00014999,2]
[329732608,1718629843084,-155.02790453,0.00014999,2]
[329732609,1718629843103,-927.89292866,0.00014999,2]
[329732610,1718629843124,-290.08414391,0.00014999,2]
[329732611,1718629843172,-10643.8640198,0.00014999,2]
[329732612,1718629843210,-1233.65794957,0.00014999,2]
[329732613,1718629843231,-155.04185566,0.00014999,2]
[329732614,1718629843249,-1102.13859562,0.00014999,2]
[329732615,1718629843273,-155.01550155,0.00015,2]
[329732616,1718629843291,-34738.77812561,0.00015,2]
[329732617,1718629843317,-593.45670335,0.00016254,2]
[329732618,1718629843330,-721.36613912,0.00016338,2]
[329732619,1718629843367,-1303.55844644,0.00016419,2]
[329732620,1718629843380,-155.02170304,0.00016435,2]
[329732621,1718629843420,-286.07406684,0.00016435,2]
[329732622,1718629843436,-155.02170304,0.00016435,2]
[329732623,1718629843450,-156.66435255,0.00016435,2]
[329732624,1718629843476,-516.125201,0.00016435,2]
[329732625,1718629843505,-155.02170304,0.00016435,2]
[329732626,1718629843518,-306.3481463,0.00016435,2]
[329732628,1718629843531,-1101.24268017,0.00016435,2]
[329732629,1718629843556,-155.02170304,0.00016435,2]
[329732633,1718629843606,-155.14087578,0.00016435,2]
[329732634,1718629843666,-155.02170304,0.00016435,2]
[329732635,1718629843702,-841.72525747,0.00016435,2]
[329732636,1718629843721,-216.47083263,0.00016435,2]
[329732637,1718629843758,-489.52678547,0.00016435,2]
[329732638,1718629843770,-946.2991471,0.00016435,2]
[329732639,1718629843783,-2412.19596902,0.00016435,2]
[329732640,1718629843839,-1692.62660858,0.00016435,2]
[329732641,1718629843862,-1462.9478631,0.00016435,2]
[329732642,1718629843886,-155.02790453,0.00016436,2]
[329732643,1718629843920,-2817.72604332,0.00016436,2]
[329732644,1718629843948,-1034.68513835,0.00016436,2]
[329732645,1718629843972,-500.0,0.00016438,2]
[329732646,1718629843985,-500.0,0.00016438,2]
[329732647,1718629844004,-502.57518118,0.00016438,2]
[329732648,1718629844089,-507.81796892,0.00016438,2]
[329732649,1718629844118,-511.95249391,0.00016438,2]
[329732650,1718629844196,-510.13386643,0.00016438,2]
[329732651,1718629844213,-504.90361991,0.00016438,2]
[329732652,1718629844252,-509.11692237,0.00016438,2]
[329732653,1718629844289,-506.81068014,0.00016438,2]
[329732654,1718629844358,-431.6908566,0.00016438,2]
[329732655,1718629844370,-500.0,0.00016438,2]
[329732656,1718629844400,-500.0,0.00016438,2]
[329732657,1718629844426,-500.0,0.00016438,2]
[329732658,1718629844439,-505.49549711,0.00016438,2]
[329732659,1718629844458,-500.0,0.00016438,2]
[329732660,1718629844474,-500.0,0.00016438,2]
[329732661,1718629844497,-500.0,0.00016438,2]
[329732662,1718629844528,-500.0,0.00016438,2]
[329732663,1718629844708,-500.0,0.00016438,2]
[329732664,1718629844721,-500.0,0.00016438,2]
[329732665,1718629844743,-500.0,0.00016438,2]
[329732666,1718629844774,-500.0,0.00016438,2]
[329732667,1718629844798,-517.4457537,0.00016438,2]
[329732668,1718629844843,-505.37617169,0.00016438,2]
[329732669,1718629844859,-500.0,0.00016438,2]
[329732671,1718629844872,-522.15736805,0.00016438,2]
[329732673,1718629844919,-500.0,0.00016438,2]
[329732675,1718629844944,-500.0,0.00016438,2]
[329732676,1718629844959,-500.0,0.00016438,2]
[329732677,1718629844984,-503.79212273,0.00016438,2]
[329732678,1718629844997,-500.0,0.00016438,2]
[329732679,1718629845019,-500.0,0.00016438,2]
[329732680,1718629845030,-548.49980313,0.00016438,2]
[329732681,1718629845042,-500.0,0.00016438,2]
[329732682,1718629845076,-500.0,0.00016438,2]
[329732683,1718629845102,-500.0,0.00016438,2]
[329732684,1718629845114,-500.0,0.00016438,2]
[329732685,1718629845137,-500.0,0.00016438,2]
[329732686,1718629845165,-500.0,0.00016438,2]
[329732687,1718629845177,-500.0,0.00016438,2]
[329732688,1718629845204,-500.0,0.00016438,2]
[329732689,1718629845234,-584.80858465,0.00016438,2]
[329732690,1718629845272,-561.01200474,0.00016438,2]
[329732691,1718629845320,-500.0,0.00016438,2]
[329732692,1718629845338,-500.0,0.00016438,2]
[329732693,1718629845360,-500.0,0.00016438,2]
[329732694,1718629845396,-500.0,0.00016438,2]
[329732695,1718629845439,-500.0,0.00016438,2]
[329732696,1718629845457,-442.75298228,0.00016438,2]
[329732697,1718629845471,-500.0,0.00016438,2]
[329732698,1718629845491,-500.0,0.00016438,2]
[329732699,1718629845592,-500.0,0.00016438,2]
[329732700,1718629845629,-500.0,0.00016438,2]
[329732701,1718629845641,-500.0,0.00016438,2]
[329732702,1718629845652,-500.0,0.00016438,2]
[329732703,1718629845669,-540.02562148,0.00016438,2]
[329732704,1718629845698,-500.0,0.00016438,2]
[329732705,1718629845725,-500.0,0.00016438,2]
[329732706,1718629845744,-500.0,0.00016438,2]
[329732707,1718629845780,-184.56189872,0.00016438,2]
[329732708,1718629845794,-500.0,0.00016438,2]
[329732709,1718629845806,-500.0,0.00016438,2]
[329732710,1718629845834,-500.0,0.00016438,2]
[329732711,1718629845863,-358.12440135,0.00016438,2]
[329732712,1718629845882,-500.0,0.00016438,2]
[329732713,1718629845906,-500.0,0.00016438,2]
[329732714,1718629845922,-500.34997689,0.00016438,2]
[329732715,1718629845946,-500.0,0.00016438,2]
[329732716,1718629845971,-500.0,0.00016438,2]
[329732717,1718629845983,-500.0,0.00016438,2]
[329732719,1718629845999,-500.0,0.00016438,2]